bitfinex-derivatives/quotes_BNBF0:USTF0_20250710
["timestamp","ask_amount","ask_price","bid_price","bid_amount"]
[1752177174605,1.64505888,676.09,676.08,0.99193077]
[1752177176312,2.20089072,676.2,676.08,0.99193077]
[1752177176513,2.20089072,676.2,676.09,0.99193077]
[1752177176808,2.20089072,676.2,675.52,1.66247505]
[1752177177111,1.6479953,676.06,675.53,0.99361514]
[1752177177313,1.6479953,676.06,675.54,0.99361514]
[1752177177511,1.6479953,676.06,675.55,0.99361514]
[1752177177712,1.6479953,676.06,675.56,0.99381837]
[1752177178009,1.6479953,676.06,675.57,0.99381837]
[1752177178208,1.6479953,676.06,675.58,0.99381837]
[1752177178410,1.6479953,676.06,675.59,0.99381837]
[1752177178609,1.6479953,676.06,675.6,0.99381837]
[1752177178808,1.6479953,676.06,675.61,0.99381837]
[1752177179008,1.6479953,676.05,675.62,0.99381837]
[1752177179310,1.6479953,676.03,675.63,0.99381837]
[1752177179609,1.6479953,676.03,675.64,0.99381837]
[1752177179808,1.6479953,676.03,675.65,0.99381837]
[1752177180012,1.6479953,676.03,675.66,0.99381837]
[1752177180308,1.6479953,676.03,675.67,0.99381837]
[1752177180510,1.6479953,676.03,675.68,0.99381837]
[1752177180710,1.6479953,676.03,675.69,0.99381837]
[1752177180907,1.6479953,676.03,675.7,0.99381837]
[1752177181110,1.6479953,676.03,675.71,0.99381837]
[1752177181411,1.64820574,676.03,675.72,0.99381837]
[1752177181614,1.64820574,676.03,675.57,1.6608449]
[1752177181615,1.64820574,676.03,675.73,0.99381837]
[1752177181814,1.64820574,676.03,675.74,0.99381837]
[1752177182114,1.64820574,676.03,675.75,0.99381837]
[1752177182409,1.64820574,676.03,675.76,0.99381837]
[1752177182609,1.64820574,676.03,675.77,0.99381837]
[1752177182813,1.64820574,676.03,675.78,0.99381837]
[1752177183008,1.64820574,676.03,675.79,0.99381837]
[1752177183212,1.64820574,676.03,675.8,0.99381837]
[1752177183510,1.64820574,676.04,675.81,0.99381837]
[1752177183710,1.64820574,676.04,675.82,0.99381837]
[1752177183910,1.64820574,676.04,675.83,0.99381837]
[1752177184215,1.64820574,676.04,675.84,0.99381837]
[1752177184415,1.64820574,676.04,675.85,0.99381837]
[1752177184610,1.64820574,676.04,675.86,0.99381837]
[1752177184814,1.64820574,676.04,675.87,0.99381837]
[1752177185008,1.64820574,676.04,675.88,0.99381837]
[1752177185316,1.64820574,676.04,675.89,0.99381837]
[1752177185610,1.64820574,676.04,675.9,0.99381837]
[1752177185809,1.64820574,676.04,675.91,0.99381837]
[1752177186009,1.64820574,676.04,675.92,0.99381837]
[1752177186312,1.64820574,676.04,675.93,0.99381837]
[1752177186612,1.64820574,676.04,675.94,0.99381837]
[1752177186813,1.64820574,676.04,675.95,0.99381837]
[1752177187010,1.64820574,676.04,675.96,0.99381837]
[1752177187214,1.64820574,676.04,675.97,0.99381837]
[1752177187411,1.64820574,676.04,675.98,0.99381837]
[1752177187615,1.64820574,676.04,675.99,0.99381837]
[1752177187916,1.64820574,676.04,676.0,0.99381837]
[1752177188112,1.64820574,676.04,676.01,0.99381837]
[1752177188315,1.64820574,676.04,676.02,0.99381837]
[1752177188512,1.64820574,676.04,676.03,0.99381837]
[1752177188713,1.64820574,676.08,676.03,0.99381837]
[1752177188912,1.64820574,676.08,676.04,0.99381837]
[1752177189115,1.64820574,676.08,676.05,0.99381837]
[1752177189312,1.64820574,676.08,676.06,0.99381837]
[1752177189517,1.64820574,676.08,676.07,0.99381837]
[1752177189716,1.64820574,676.08,676.07,0.99380069]
[1752177198525,2.20089072,676.18,676.07,0.99379624]
[1752177198721,2.20089072,676.18,676.08,0.99379624]
[1752177198926,2.20089072,676.18,675.89,1.8]
[1752177199127,1.64621472,676.05,675.9,0.99379624]
[1752177199328,1.64621472,676.05,675.91,0.99379624]
[1752177199528,1.64621472,676.05,675.92,0.99379624]
[1752177199726,1.64621472,676.05,675.93,0.99379624]
[1752177199931,1.64621472,676.05,675.94,0.99379624]
[1752177200229,1.64621472,676.05,675.95,0.99379624]
[1752177200429,1.64621472,676.05,675.96,0.99379624]
[1752177200627,1.64621472,676.05,675.97,0.99379624]
[1752177200827,1.64621472,676.05,675.98,0.99379624]
[1752177201027,1.64621472,676.05,675.99,0.99379624]
[1752177201227,1.64621472,676.05,676.0,0.99379624]
[1752177201431,1.64621472,676.05,675.89,1.8]
[1752177201627,1.64621472,676.05,675.9,0.99379535]
[1752177201826,1.64621472,676.05,675.91,0.99379535]
[1752177202126,1.64621472,676.05,675.92,0.99379535]
[1752177202331,1.64621472,676.05,675.93,0.99379535]
[1752177202531,1.64621472,676.05,675.94,0.99379535]
[1752177202730,1.64621472,676.05,675.95,0.99379535]
[1752177203027,1.64621472,676.05,675.96,0.99379535]
[1752177203226,1.64621472,676.05,675.97,0.99379535]
[1752177203430,1.64621472,676.05,675.98,0.99379535]
[1752177203629,1.64621472,676.05,675.99,0.99379535]
[1752177203828,1.64621472,676.05,676.0,0.99379535]
[1752177204031,1.64621472,676.05,676.01,0.99379535]
[1752177204233,1.64621472,676.05,676.02,0.99379535]
[1752177204429,1.64621472,676.05,676.03,0.99379535]
[1752177204629,1.64621472,676.06,676.04,0.99379535]
[1752177204833,1.64621472,676.05,675.89,1.8]
[1752177205035,1.64621472,676.05,675.9,0.99381719]
[1752177205233,1.64621472,676.05,675.91,0.99381719]
[1752177205533,1.64621472,676.05,675.92,0.99381719]
[1752177205731,1.64621472,676.05,675.93,0.99381719]
[1752177205935,1.64621472,676.05,675.94,0.99381719]
[1752177206131,1.64621472,676.05,675.95,0.99381719]
[1752177206336,1.64621472,676.05,675.96,0.99381719]
[1752177206535,1.64621472,676.04,675.97,0.99381719]
[1752177206831,1.64621472,676.04,675.98,0.99381719]
[1752177207029,1.64621472,676.04,675.99,0.99381719]
[1752177207234,1.64621472,676.04,676.0,0.99381719]
[1752177207431,1.64621472,676.04,676.01,0.99381719]
[1752177207633,1.64621472,676.04,676.02,0.99381719]
[1752177207833,1.64621472,676.04,676.03,0.99381719]
[1752177208534,1.64621472,676.05,676.03,0.99381719]
[1752177208739,1.64621472,676.05,676.04,0.99381719]
[1752177210836,2.20089072,676.17,676.04,0.99381719]
[1752177211039,2.20089072,676.17,676.05,0.99381719]
[1752177211240,2.20089072,676.17,676.06,0.99381719]
[1752177211437,2.20089072,676.17,676.07,0.99381719]
[1752177211641,2.20089072,676.17,675.89,1.8]
[1752177211841,1.64714572,676.04,675.9,0.99379848]
[1752177212037,1.64714572,676.04,675.91,0.99379848]
[1752177212237,1.64714572,676.04,675.92,0.99379848]
[1752177212541,1.64714572,676.04,675.93,0.99379848]
[1752177212741,1.64714572,676.04,675.94,0.99379848]
[1752177212938,1.64714572,676.03,675.95,0.99379848]
[1752177213142,1.64714572,676.03,675.89,1.8]
[1752177213143,1.64714572,676.03,675.96,0.99379848]
[1752177213342,1.64714572,676.03,675.97,0.99379441]
[1752177213539,1.64714572,676.03,675.98,0.99379441]
[1752177213738,1.64714572,676.03,675.99,0.99379441]
[1752177213942,1.64714572,676.03,676.0,0.99379441]
[1752177214138,1.64714572,676.03,676.01,0.99379441]
[1752177214440,1.64714572,676.04,676.02,0.99379441]
[1752177214638,1.64714572,676.04,676.03,0.99379441]
[1752177216838,1.64714572,676.05,676.03,0.99379441]
[1752177217044,1.64714572,676.05,676.04,0.99379441]
[1752177217239,2.20089072,676.17,676.04,0.99379441]
[1752177217438,2.20089072,676.17,676.05,0.99379441]
[1752177217637,2.20089072,676.17,676.06,0.99379441]
[1752177217842,2.20089072,676.17,676.07,0.99379441]
[1752177218044,2.20089072,676.17,675.89,1.8]
[1752177218240,1.64669256,676.04,675.9,0.99375868]
[1752177218443,1.64669256,676.04,675.91,0.99375868]
[1752177218644,1.64669256,676.04,675.92,0.99375868]
[1752177218844,1.64669256,676.04,675.93,0.99375868]
[1752177219044,1.64669256,676.04,675.94,0.99375868]
[1752177219244,1.64669256,676.04,675.95,0.99375868]
[1752177219444,1.64669256,676.04,675.96,0.99375868]
[1752177219641,1.64669256,676.03,675.97,0.99375868]
[1752177219941,1.64669256,676.03,675.98,0.99375868]
[1752177220145,1.64669256,676.03,675.99,0.99375868]
[1752177220345,1.64669256,676.03,676.0,0.99375868]
[1752177220547,1.64669256,676.03,676.01,0.99375868]
[1752177220741,1.64669256,676.03,676.02,0.99375868]
[1752177221347,2.20089072,676.14,676.02,0.99375868]
[1752177221647,2.20089072,676.14,676.03,0.99375868]
[1752177221944,2.20089072,676.14,676.04,0.99375868]
[1752177222148,2.20089072,676.14,676.05,0.99375868]
[1752177222346,2.20089072,676.13,676.06,0.99375868]
[1752177222546,2.20089072,676.13,676.07,0.99375868]
[1752177222740,2.20089072,676.13,675.89,1.8]
[1752177222945,1.64713042,676.02,675.9,0.99405752]
[1752177223147,1.64713042,676.02,675.91,0.99405752]
[1752177223341,1.64713042,676.02,675.92,0.99405752]
[1752177223545,1.64713042,676.02,675.93,0.99405752]
[1752177223744,1.64713042,676.01,675.94,0.99405752]
[1752177223943,1.64713042,676.01,675.95,0.99405752]
[1752177224242,1.64713042,676.01,675.96,0.99405752]
[1752177224442,1.64713042,676.0,675.97,0.99405752]
[1752177224644,1.64713042,676.0,675.98,0.99405752]
[1752177224946,1.64713042,676.0,675.99,0.99405752]
[1752177226345,2.20089072,676.1,675.99,0.99405752]
[1752177226544,2.20089072,676.1,676.0,0.99405752]
[1752177226744,2.20089072,676.1,676.01,0.99405752]
[1752177226945,2.20089072,676.1,676.02,0.99405752]
[1752177227145,2.20089072,676.1,676.03,0.99405752]
[1752177227345,2.20089072,676.1,676.04,0.99405752]
[1752177227649,2.20089072,676.1,676.05,0.99405752]
[1752177227948,2.20089072,676.1,676.06,0.99405752]
[1752177228149,2.20089072,676.1,676.07,0.99405752]
[1752177228347,2.20089072,676.09,676.08,0.99405752]
[1752177229549,3.32089632,676.19,676.08,0.99405752]
[1752177229746,3.32089632,676.19,676.09,0.99405752]
[1752177230046,3.32089632,676.19,676.1,0.99405752]
[1752177230349,3.32089632,676.19,676.11,0.99405752]
[1752177230550,3.32089632,676.19,675.91,1.751]
[1752177230748,1.64963498,675.97,675.92,0.9953997]
[1752177230951,1.64963498,675.97,675.93,0.9953997]
[1752177231247,1.64963498,675.97,675.94,0.9953997]
[1752177231446,1.64963498,675.97,675.95,0.9953997]
[1752177231751,1.64963498,675.97,675.96,0.9953997]
[1752177238257,1.64963498,675.98,675.96,0.9953997]
[1752177238552,1.64963498,675.98,675.97,0.9953997]
[1752177239656,1.64963498,675.98,675.97,0.99551815]
[1752177240958,1.64963498,675.99,675.97,0.99551815]
[1752177241155,1.64963498,675.99,675.98,0.99551815]
[1752177241652,1.64963498,675.99,675.98,0.99552061]
[1752177246762,1.64963498,676.05,675.98,0.99552061]
[1752177246963,1.64963498,676.05,675.99,0.99552061]
[1752177247159,1.64963498,676.15,676.0,0.99552061]
[1752177247358,1.64963498,676.17,676.01,0.99552061]
[1752177247564,1.64963498,676.17,676.02,0.99489432]
[1752177247764,1.64963498,676.17,676.03,0.99489432]
[1752177247962,1.64963498,676.17,676.04,0.99489432]
[1752177248262,1.64963498,676.18,676.05,0.99489432]
[1752177248460,1.64963498,676.18,676.06,0.99489432]
[1752177248662,1.64963498,676.18,676.07,0.99489432]
[1752177248861,1.64963498,676.18,676.08,0.99489432]
[1752177249061,1.64963498,676.18,676.09,0.99489432]
[1752177249262,1.64963498,676.18,676.1,0.99489432]
[1752177249462,1.64963498,676.18,676.11,0.99489432]
[1752177249661,1.64963498,676.18,676.12,0.99489432]
[1752177249963,1.64963498,676.19,676.13,0.99489432]
[1752177250162,1.64963498,676.19,676.14,0.99489432]
[1752177250461,1.64963498,676.2,676.15,0.99489432]
[1752177250663,1.64963498,676.2,676.16,0.99489432]
[1752177250861,1.64963498,676.2,676.17,0.99489432]
[1752177251161,1.64963498,676.2,676.18,0.99489432]
[1752177251361,1.64963498,676.2,676.19,0.99489432]
[1752177253368,1.64963498,676.21,676.19,0.99489432]
[1752177253568,1.64963498,676.21,676.2,0.99489432]
[1752177256573,2.1995133,676.34,676.2,0.99489432]
[1752177256768,2.1995133,676.33,676.21,0.99489432]
[1752177256970,2.1995133,676.33,675.91,1.751]
[1752177257166,1.64646848,676.18,675.92,0.99363723]
[1752177257368,1.64646848,676.18,675.93,0.99363723]
[1752177257570,1.64646848,676.18,675.94,0.99363723]
[1752177257772,1.64646848,676.18,675.95,0.99363723]
[1752177258067,1.64646848,676.18,675.96,0.99363723]
[1752177258272,1.64646848,676.18,675.97,0.99363723]
[1752177258568,1.64646848,676.18,675.98,0.99363723]
[1752177258767,1.64646848,676.18,675.99,0.99363723]
[1752177258971,1.64646848,676.18,676.0,0.99363723]
[1752177259171,1.64646848,676.18,676.01,0.99363723]
[1752177259368,1.64646848,676.18,676.02,0.99363723]
[1752177259668,1.64646848,676.18,676.03,0.99363723]
[1752177259868,1.64646848,676.15,676.04,0.99363723]
[1752177260173,1.64646848,676.15,676.05,0.99363723]
[1752177260472,1.64646848,676.15,676.06,0.99363723]
[1752177260670,1.64646848,676.15,676.07,0.99363723]
[1752177260875,1.64646848,676.15,675.91,1.751]
[1752177261074,1.64646848,676.15,675.92,0.99339141]
[1752177261272,1.64646848,676.15,675.93,0.99339141]
[1752177261473,1.64646848,676.15,675.94,0.99339141]
[1752177261675,1.64646848,676.15,675.95,0.99339141]
[1752177261971,1.64646848,676.14,675.96,0.99339141]
[1752177262272,1.64646848,676.14,675.97,0.99339141]
[1752177262472,1.64646848,676.14,675.98,0.99339141]
[1752177262673,1.64646848,676.14,675.99,0.99339141]
[1752177262872,1.64646848,676.14,676.0,0.99339141]
[1752177263071,1.64646848,676.14,676.01,0.99339141]
[1752177263275,1.64646848,676.14,676.02,0.99339141]
[1752177263475,1.64646848,676.14,676.03,0.99339141]
[1752177263674,1.64646848,676.14,676.04,0.99339141]
[1752177263879,1.64646848,676.14,676.05,0.99339141]
[1752177264076,1.64646848,676.14,676.06,0.99339141]
[1752177264276,1.64646848,676.14,676.07,0.99339141]
[1752177264475,1.64646848,676.15,676.08,0.99339141]
[1752177264678,1.64646848,676.14,676.09,0.99339141]
[1752177264878,1.64646848,676.14,676.1,0.99339141]
[1752177265079,1.64646848,676.15,676.11,0.99339141]
[1752177265281,1.64646848,676.15,675.91,1.751]
[1752177265477,1.64646848,676.15,675.92,0.99319401]
[1752177265681,1.64646848,676.15,675.93,0.99319401]
[1752177265877,1.64646848,676.15,675.91,1.751]
[1752177265878,1.64646848,676.15,675.94,0.99319401]
[1752177266077,1.64646848,676.15,675.95,0.99319401]
[1752177266281,1.64646848,676.15,675.96,0.99319401]
[1752177266577,1.64646848,676.15,675.97,0.99319401]
[1752177266781,1.64646848,676.15,675.98,0.99319401]
[1752177267081,1.64646848,676.15,675.99,0.99319401]
[1752177267284,1.64646848,676.15,676.0,0.99319401]
[1752177267481,1.64646848,676.15,676.01,0.99319401]
[1752177267678,1.64646848,676.15,676.02,0.99319401]
[1752177267978,1.64646848,676.15,676.03,0.99319401]
[1752177268183,1.64646848,676.15,676.04,0.99319401]
[1752177268379,1.64646848,676.15,676.05,0.99319401]
[1752177268582,1.64646848,676.15,676.06,0.99319401]
[1752177268882,1.64646848,676.15,676.07,0.99319401]
[1752177269083,1.64646848,676.15,676.08,0.99319401]
[1752177269283,1.64646848,676.15,676.09,0.99319401]
[1752177269484,1.64646848,676.15,676.1,0.99319401]
[1752177269783,1.64646848,676.16,676.11,0.99319401]
[1752177269980,1.64646848,676.16,676.12,0.99319401]
[1752177270283,1.64646848,676.16,675.91,1.751]
[1752177270284,1.64646848,676.16,676.13,0.99319401]
[1752177270579,1.64646848,676.16,676.14,0.99319401]
[1752177270784,1.64646848,676.16,676.15,0.99319401]
[1752177275586,1.64646848,676.17,676.15,0.99319401]
[1752177275783,1.64646848,676.17,676.16,0.99319401]
[1752177275983,1.64646848,676.17,676.16,0.99307628]
[1752177279489,2.1995133,676.29,675.62,1.6608449]
[1752177279687,1.64628909,676.16,675.98,1.396]
[1752177279884,1.64628909,676.16,675.99,0.99310832]
[1752177280084,1.64628909,676.16,676.0,0.99310832]
[1752177280386,1.64628909,676.17,676.01,0.99310832]
[1752177280588,1.64628909,676.23,676.02,0.99310832]
[1752177280787,1.64628909,676.23,676.03,0.99310832]
[1752177280984,1.64628909,676.23,676.04,0.99310832]
[1752177281185,1.64628909,676.23,676.05,0.99310832]
[1752177281486,1.64628909,676.23,676.06,0.99310832]
[1752177281690,1.64628909,676.23,676.07,0.99310832]
[1752177281990,1.64628909,676.23,676.08,0.99310832]
[1752177282289,1.64628909,676.23,676.09,0.99310832]
[1752177282489,1.64628909,676.23,676.1,0.99310832]
[1752177282688,1.64628909,676.23,676.11,0.99310832]
[1752177282891,1.64628909,676.23,676.12,0.99310832]
[1752177283092,1.64628909,676.23,676.13,0.99310832]
[1752177283292,1.64628909,676.23,676.14,0.99310832]
[1752177283495,1.64628909,676.23,676.15,0.99310832]
[1752177283791,1.64628909,676.23,676.16,0.99310832]
[1752177283992,1.64628909,676.23,676.17,0.99310832]
[1752177284188,1.64628909,676.23,676.18,0.99310832]
[1752177284491,1.64628909,676.23,676.19,0.99310832]
[1752177284689,1.64628909,676.23,676.2,0.99310832]
[1752177284888,1.64628909,676.23,676.21,0.99310832]
[1752177285092,1.64628909,676.23,676.22,0.99310832]
[1752177285392,2.1995133,676.4,676.22,0.99310832]
[1752177285588,2.1995133,676.4,675.98,1.396]
[1752177285793,1.64658084,676.22,675.99,0.99322677]
[1752177286093,1.64658084,676.23,676.0,0.99322677]
[1752177286292,1.64658084,676.22,676.01,0.99322677]
[1752177286590,1.64658084,676.22,676.02,0.99322677]
[1752177286793,1.64658084,676.22,676.03,0.99322677]
[1752177287089,1.64658084,676.22,676.04,0.99322677]
[1752177287289,1.64658084,676.22,676.05,0.99322677]
[1752177287490,1.64658084,676.22,676.06,0.99322677]
[1752177287689,1.64658084,676.22,676.07,0.99322677]
[1752177287993,1.64658084,676.22,676.08,0.99322677]
[1752177288192,1.64658084,676.23,676.09,0.99322677]
[1752177288396,1.64658084,676.22,676.1,0.99322677]
[1752177288596,1.64658084,676.22,676.11,0.99322677]
[1752177288796,1.64658084,676.23,676.12,0.99322677]
[1752177289099,1.64658084,676.23,676.13,0.99322677]
[1752177289297,1.64658084,676.23,675.98,1.396]
[1752177289298,1.64658084,676.23,676.14,0.99322677]
[1752177289595,1.64658084,676.23,676.15,0.99322677]
[1752177289792,1.64658084,676.23,676.16,0.99322677]
[1752177289999,2.1995133,676.4,676.17,0.99322677]
[1752177290193,1.64717914,676.22,676.18,0.99322677]
[1752177290394,2.1995133,676.34,676.19,0.99322677]
[1752177290592,2.1995133,676.34,676.2,0.99322677]
[1752177290793,2.1995133,676.34,675.98,1.396]
[1752177290993,1.64729794,676.19,675.99,0.99341606]
[1752177291294,1.64729794,676.19,676.0,0.99341606]
[1752177291491,1.64729794,676.19,676.01,0.99341606]
[1752177291692,1.64729794,676.19,676.02,0.99341606]
[1752177291900,1.64729794,676.19,676.03,0.99341606]
[1752177292092,1.64729794,676.19,676.04,0.99341606]
[1752177292294,1.64729794,676.18,676.05,0.99341606]
[1752177292496,1.64729794,676.18,676.06,0.99341606]
[1752177292698,1.64729794,676.18,676.07,0.99341606]
[1752177292993,1.64729794,676.18,676.08,0.99341606]
[1752177293194,1.64729794,676.18,676.09,0.99341606]
[1752177293392,2.1995133,676.32,676.1,0.99341606]
[1752177293596,0.25734696,676.5,676.11,0.99341606]
[1752177293597,1.64757204,676.15,676.11,0.99341606]
[1752177293898,1.64757204,676.15,676.12,0.99341606]
[1752177294196,1.64757204,676.15,676.13,0.99341606]
[1752177294499,2.1995133,676.29,676.14,0.99341606]
[1752177294693,2.1995133,676.29,676.15,0.99341606]
[1752177294893,2.1995133,676.29,676.16,0.99341606]
[1752177295096,2.1995133,676.29,676.17,0.99341606]
[1752177295296,2.1995133,676.29,676.18,0.99341606]
[1752177295497,2.1995133,676.29,675.98,1.396]
[1752177295698,1.64830842,676.14,675.99,0.99456404]
[1752177295898,1.64830842,676.14,676.0,0.99456404]
[1752177296098,1.64830842,676.14,676.01,0.99456404]
[1752177296300,1.64830842,676.14,676.02,0.99456404]
[1752177296495,1.64830842,676.14,676.03,0.99456404]
[1752177296694,1.64830842,676.14,676.04,0.99456404]
[1752177296899,1.64830842,676.14,676.05,0.99456404]
[1752177297097,1.64830842,676.16,676.06,0.99456404]
[1752177297297,1.64830842,676.16,676.07,0.99456404]
[1752177297497,1.64830842,676.16,676.08,0.99456404]
[1752177297696,1.64830842,676.16,676.09,0.99456404]
[1752177297999,1.64830842,676.16,676.1,0.99456404]
[1752177298200,1.64830842,676.15,676.11,0.99456404]
[1752177298397,1.64830842,676.15,676.12,0.99456404]
[1752177298600,1.64830842,676.14,676.13,0.99456404]
[1752177298801,2.1995133,676.24,676.13,0.99456404]
[1752177299001,2.1995133,676.24,676.14,0.99456404]
[1752177299200,2.1995133,676.27,676.15,0.99456404]
[1752177299399,2.1995133,676.27,675.98,1.396]
[1752177299400,2.1995133,676.27,676.16,0.99456404]
[1752177299608,2.1995133,676.27,676.17,0.99456404]
[1752177299900,2.1995133,676.27,675.98,1.396]
[1752177300098,2.1995133,676.27,675.99,0.99490462]
[1752177300099,1.64898576,676.14,675.99,0.99490462]
[1752177300300,1.64898576,676.14,676.0,0.99490462]
[1752177300503,1.64898576,676.19,676.01,0.99490462]
[1752177300703,1.64898576,676.19,676.02,0.99490462]
[1752177300900,1.64898576,676.19,676.03,0.99490462]
[1752177301102,1.64898576,676.19,676.04,0.99490462]
[1752177301304,1.64898576,676.15,676.05,0.99490462]
[1752177301499,1.64898576,676.15,676.06,0.99490462]
[1752177301699,1.64898576,676.14,676.07,0.99490462]
[1752177301899,1.64898576,676.14,676.08,0.99490462]
[1752177302099,1.64898576,676.14,676.09,0.99490462]
[1752177302301,1.64898576,676.14,676.1,0.99490462]
[1752177302501,1.64898576,676.14,676.11,0.99490462]
[1752177302701,1.64898576,676.14,676.12,0.99490462]
[1752177302904,1.64898576,676.14,676.13,0.99490462]
[1752177304401,2.1995133,676.31,676.13,0.99490462]
[1752177304703,2.1995133,676.31,676.14,0.99490462]
[1752177304901,2.1995133,676.31,676.15,0.99490462]
[1752177305104,2.1995133,676.31,676.16,0.99490462]
[1752177305304,2.1995133,676.31,676.17,0.99490462]
[1752177305501,2.1995133,676.31,676.18,0.99490462]
[1752177305704,2.1995133,676.3,676.19,0.99490462]
[1752177305902,2.1995133,676.3,676.2,0.99490462]
[1752177306208,2.1995133,676.3,676.21,0.99490462]
[1752177306407,2.1995133,676.29,676.22,0.99490462]
[1752177306608,2.1995133,676.24,675.98,1.396]
[1752177306807,1.64960611,676.06,675.99,0.99572219]
[1752177307008,1.64960611,676.06,676.0,0.99572219]
[1752177307205,1.64960611,676.07,676.01,0.99572219]
[1752177307404,1.64960611,676.07,676.02,0.99572219]
[1752177307607,1.64960611,676.07,676.03,0.99572219]
[1752177307805,1.64960611,676.07,676.04,0.99572219]
[1752177308004,1.64960611,676.07,676.05,0.99572219]
[1752177308308,1.64960611,676.07,676.06,0.99572219]
[1752177309410,1.64960611,676.08,676.06,0.99572219]
[1752177309607,1.64960611,676.08,676.07,0.99572219]
[1752177310311,2.1995133,676.16,676.07,0.99572219]
[1752177310607,2.1995133,676.17,676.08,0.99572219]
[1752177310811,2.1995133,676.17,676.09,0.99572219]
[1752177311009,2.1995133,676.17,675.98,1.396]
[1752177311307,1.6476629,676.04,675.99,0.99512758]
[1752177311512,1.6476629,676.04,676.0,0.99512758]
[1752177311807,1.6476629,676.04,676.01,0.99512758]
[1752177312005,1.6476629,676.04,676.02,0.99512758]
[1752177312205,1.6476629,676.04,676.03,0.99512758]
[1752177313207,1.6476629,676.05,676.03,0.99512758]
[1752177313406,1.6476629,676.05,676.04,0.99512758]
[1752177315108,1.6476629,676.09,676.04,0.99512758]
[1752177315311,1.6476629,676.09,676.05,0.99512758]
[1752177315511,1.6476629,676.09,676.06,0.99512758]
[1752177315708,1.6476629,676.09,676.07,0.99512758]
[1752177315908,1.6476629,676.09,676.08,0.99512758]
[1752177316412,1.6476629,676.1,676.08,0.99512758]
[1752177316609,1.6476629,676.1,676.09,0.99512758]
[1752177317014,2.1995133,676.26,676.09,0.99512758]
[1752177317313,2.1995133,676.26,676.1,0.99512758]
[1752177317512,2.1995133,676.26,676.11,0.99512758]
[1752177317713,2.1995133,676.26,676.12,0.99458881]
[1752177317909,2.1995133,676.26,675.61,0.25733744]
[1752177318109,1.64678333,676.09,675.62,0.99458881]
[1752177318314,1.64678333,676.1,675.63,0.99458881]
[1752177318611,1.64678333,676.1,675.64,0.99458881]
[1752177318813,1.64678333,676.1,675.65,0.99458881]
[1752177319013,1.64678333,676.1,675.66,0.99458881]
[1752177319311,1.64678333,676.1,675.67,0.99458881]
[1752177319610,1.64678333,676.1,675.68,0.99458881]
[1752177319814,1.64678333,676.1,675.69,0.99458881]
[1752177320114,1.64678333,676.1,675.7,0.99458881]
[1752177320313,1.64678333,676.1,675.71,0.99458881]
[1752177320512,1.64678333,676.1,675.72,0.99458881]
[1752177320715,1.64678333,676.1,675.73,0.99458881]
[1752177321014,1.64678333,676.1,675.74,0.99458881]
[1752177321212,1.64678333,676.1,675.75,0.99458881]
[1752177321417,1.64678333,676.1,675.76,0.99458881]
[1752177321617,1.64678333,676.1,675.77,0.99458881]
[1752177321818,1.64678333,676.1,675.78,0.99458881]
[1752177322116,1.64678333,676.1,675.79,0.99458881]
[1752177322418,1.64678333,676.1,675.8,0.99458881]
[1752177322613,1.64678333,676.1,675.81,0.99458881]
[1752177322816,1.64678333,676.1,675.82,0.99458881]
[1752177323012,1.64678333,676.1,675.83,0.99458881]
[1752177323214,1.64678333,676.1,675.84,0.99458881]
[1752177323516,2.1995133,676.28,675.85,0.99458881]
[1752177323517,1.64678333,676.11,675.85,0.99458881]
[1752177323716,1.64678333,676.11,675.86,0.9939188]
[1752177323916,1.64678333,676.11,675.87,0.9939188]
[1752177324119,1.64678333,676.11,675.88,0.9939188]
[1752177324317,1.64678333,676.11,675.89,0.9939188]
[1752177324615,1.64678333,676.11,675.9,0.9939188]
[1752177324920,1.64678333,676.07,675.91,0.9939188]
[1752177325121,1.64678333,676.08,675.92,0.9939188]
[1752177325317,1.64678333,676.08,675.93,0.9939188]
[1752177325516,1.64678333,676.08,675.94,0.9939188]
[1752177325720,1.64678333,676.08,675.95,0.9939188]
[1752177326017,1.64678333,676.08,675.96,0.9939188]
[1752177326315,1.64678333,676.08,675.97,0.9939188]
[1752177326520,1.64678333,676.08,675.98,0.9939188]
[1752177326715,1.64678333,676.08,675.71,1.321]
[1752177326716,1.64678333,676.08,675.99,0.9939188]
[1752177326921,1.64678333,676.08,676.0,0.9939188]
[1752177327121,1.64678333,676.08,676.01,0.9939188]
[1752177327324,1.64678333,676.07,676.02,0.9939188]
[1752177327522,1.64678333,676.07,676.03,0.9939188]
[1752177327723,1.64678333,676.07,676.04,0.9939188]
[1752177327923,1.64678333,676.07,676.05,0.9939188]
[1752177328122,1.64678333,676.07,676.06,0.9939188]
[1752177335030,2.1995133,676.19,676.06,0.9939188]
[1752177335233,2.1995133,676.19,675.71,1.321]
[1752177335432,1.6468695,676.06,675.72,0.99377748]
[1752177335634,1.6468695,676.06,675.73,0.99377748]
[1752177335829,1.6468695,676.06,675.74,0.99377748]
[1752177336033,1.6468695,676.06,675.75,0.99377748]
[1752177336230,1.6468695,676.06,675.76,0.99377748]
[1752177336530,1.6468695,676.06,675.77,0.99377748]
[1752177336733,1.6468695,676.06,675.78,0.99377748]
[1752177337031,1.6468695,676.06,675.79,0.99377748]
[1752177337228,1.6468695,676.04,675.8,0.99377748]